[Event "FIDE WSTC Open 50 2025"]
[Site "Prague"]
[Date "2025.02.23"]
[Round "6.33"]
[White "Denk, Adolf"]
[Black "Csiszar, Csaba"]
[Result "0-1"]
[Annotator "TA"]
[ECO "A46"]
[WhiteElo "2106"]
[BlackElo "2378"]
[PlyCount "109"]
[EventDate "2025.02.17"]
[EventType "team-tourn"]
[EventCountry "CZE"]
[SourceTitle "playchess.com"]
[Source "ChessBase"]
[SourceQuality "1"]
[TimeControl "40/5400+30:1800+30"]

{[%evp 11,109,0,15,-8,22,15,18,0,0,-52,0,-40,-10,-2,-25,-141,-82,-118,-97,-199,-197,-191,-157,-156,-158,-160,-163,-148,-139,-192,-165,-206,-148,-147,-138,-141,-145,-141,-119,-162,-57,-131,143,144,293,289,265,308,300,299,335,334,331,341,334,334,447,11,11,14,277,247,286,43,41,33,46,52,45,45,78,57,89,89,82,79,90,39,38,0,19,0,62,12,61,0,20,-125,0,0,10,0,0,0,0,0,0,0,0,0]} 1. d4 {[%emt 0:00:02]} Nf6 {[%emt 0:00:08]} 2. Nf3 {[%emt 0:00:06]} d6 {[%emt 0:00:09]} 3. e3 {[%emt 0:01:06]} g6 {[%emt 0:00:43]} 4. Bd3 {[%emt 0:00:09]} Bg7 {[%emt 0:00:49]} 5. Nbd2 {[%emt 0:00:22]} O-O {[%emt 0:01:03]} 6. O-O {[%emt 0:00:11]} Nc6 {[%emt 0:00:58]} 7. c3 {[%emt 0:02:16] A48: 1 d4 Nf6 2 Nf3 g6: Torre, London and Colle Systems.} a6 {[%emt 0:03:48]} 8. Re1 {[%emt 0:03:53]} e5 {[%emt 0:01:03]} 9. b3 $146 {[%emt 0:18:27]} (9. Bc2 Ne8 10. dxe5 dxe5 11. Nb3 a5 12. Qxd8 Nxd8 13. Ng5 f5 14. Nc5 Rb8 15. Bb3+ Kh8 {1-0 Stoican,A-Ursuianu,F ROM-ch sf U16 Girls 2002}) 9... Re8 {[%emt 0:04:16]} 10. e4 {[%emt 0:10:54]} (10. Qc2 $11) 10... exd4 {[%emt 0:09:13]} 11. cxd4 {[%emt 0:08:02]} Nh5 $1 {[%emt 0:06:21]} 12. Bb2 {[%emt 0:01:45]} Nf4 {[%emt 0:01:13]} 13. Bb1 {[%emt 0:13:32]} (13. Bf1 $11) 13... Bg4 $36 {[%emt 0:08:08][%cal Oc6d4][%mdl 2048] Hoping for ...Nxd4!. White is under strong pressure.} 14. Qc1 {[%emt 0:04:45]} Nb4 {[%emt 0:09:23][%cal Oc7c5]} 15. Qc4 {[%emt 0:13:34] [#]} (15. Re3 $17 {was necessary.}) 15... c5 $1 $19 {[%emt 0:02:30][%mdl 512]} 16. a3 {[%emt 0:04:04]} (16. Qf1 Nc6) 16... b5 {[%emt 0:03:08]} 17. Qf1 {[%emt 0:04:47]} Nc6 {[%emt 0:00:54][%cal Rc6d4]} 18. a4 {[%emt 0:01:14]} Rb8 {[%emt 0:02:31] Black has more active pieces.} 19. axb5 {[%emt 0:02:51]} axb5 {[%emt 0:00:04][%cal Rc5d4]} 20. Bd3 {[%emt 0:01:56]} (20. Kh1 $17) 20... Bd7 $1 {[%emt 0:06:17]} (20... cxd4 21. Bxb5 d3 22. Bxc6 $17) (20... Bxd4 21. Bxd4 Nxd4 22. Nxd4 $14) 21. e5 {[%emt 0:02:05]} dxe5 {[%emt 0:04:19]} 22. dxe5 {[%emt 0:00:56] [#]} Bh3 $1 {[%emt 0:31:18][%mdl 512]} 23. Bxb5 {[%emt 0:02:05]} Bxg2 {[%emt 0:00:29]} 24. Qc4 {[%emt 0:00:13]} Bxf3 {[%emt 0:02:07]} 25. Nxf3 {[%emt 0:00:20]} Qc8 {[%emt 0:00:46]} (25... Rxb5 $1 $19 26. Qxb5 Qc8) 26. e6 {[%emt 0:01:49]} (26. Qxf4 $15 Rxb5 27. Ng5) 26... Nh3+ $2 {[%emt 0:00:29][%mdl 8192] Excellent horsemanship.} (26... Bxb2 $2 27. exf7+ Kg7 28. fxe8=N+ $18 (28. fxe8=R $2 Qg4+ 29. Kh1 Qg2#)) (26... Rxe6 $17 {stays on course.} 27. Qxf4 Rxe1+ (27... Rxb5 28. Rxe6 Bxb2 29. Ng5 $17) 28. Rxe1 Rxb5 29. Bxg7 Kxg7) 27. Kf1 $16 {[%emt 0:00:56]} (27. Kg2 $6 Rxe6 28. Bxg7 (28. Qxc5 $2 Bxb2 29. Ra4 Bd4 $19) 28... Rxb5 $14) 27... fxe6 {[%emt 0:01:15]} (27... Rxe6 $16 28. Bxg7 Kxg7 29. Rxe6 Qxe6 (29... fxe6 $2 30. Qxc5 Nd8 31. Qe5+ Kg8 32. Bc4 $18) 30. Qxe6 (30. Qxc5 $2 Qf6 $19) 30... fxe6 31. Bxc6 Rxb3 32. Ra7+ Kg8) 28. Bxg7 $1 $18 {[%emt 0:00:10]} (28. Qxc5 Bxb2 (28... Rxb5 $2 29. Qxb5 Bxb2 30. Ra2 $19) 29. Bxc6 Bxa1 (29... Rxb3 30. Ra8 $11) 30. Rxa1 Rxb3 $17) 28... Kxg7 {[%emt 0:00:13]} 29. Qxc5 {[%emt 0:00:15]} Rxb5 {[%emt 0:00:53]} 30. Qxb5 {[%emt 0:00:15]} Rf8 {[%emt 0:00:21]} 31. Re3 {[%emt 0:00:49]} Rf5 {[%emt 0:00:17]} 32. Qc4 {[%emt 0:00:53]} Qb7 {[%emt 0:00:07]} 33. Rc1 {[%emt 0:00:51]} (33. Qxe6 Nd4 34. Qd6 (34. Nxd4 $2 Rxf2+ 35. Ke1 Qh1#) (34. Qe7+ Qxe7 35. Rxe7+ Kf6 $16) 34... Qb5+ 35. Kg2 Nf4+ 36. Kg1 (36. Kh1 Nxf3 37. Rxf3 Qb7 $11) 36... Nh3+ 37. Kg2 Nf4+ 38. Kg1 Nfe2+ 39. Kg2 Nf4+ $11) 33... Ne7 {[%emt 0:00:07]} 34. Qxe6 {[%emt 0:01:05]} (34. Qc7 $1 $18 {[%cal Rc7b7]} Qa6+ 35. Ke1) 34... Nd5 $11 {[%emt 0:00:07] Really sharp!} 35. Rd3 {[%emt 0:00:37]} Qb5 $2 {[%emt 0:00:18][%mdl 8192]} (35... Nhf4 $11 {and Black is okay.} 36. Qe4 Nxd3 37. Qxd3 Nf4 38. Qc3+ Rf6) 36. Rc4 $18 {[%emt 0:00:28]} Nhf4 {[%emt 0:00:08]} 37. Qe4 {[%emt 0:00:41]} ({Only move:} 37. Nd4 $1 $18 {[%cal Rd4f5]} Nxe6 38. Nxb5) 37... Nxd3 $14 {[%emt 0:00:14]} 38. Qxd3 {[%emt 0:00:02]} Qa5 {[%emt 0:01:20]} 39. Qd4+ {[%emt 0:00:17]} (39. Ra4 Qc5 40. Qd4+ Qxd4 41. Nxd4 Rh5 42. Nf3) 39... Nf6 $1 {[%emt 0:00:16]} 40. Kg2 {[%emt 0:00:50]} (40. Qd2 {simplifies} Qxd2 41. Nxd2 Nd5 42. Ra4) 40... Qa8 {[%emt 0:02:14]} 41. Rc7+ {[%emt 0:05:58]} Kh6 {[%emt 0:00:15]} 42. Qe3+ {[%emt 0:01:56]} Kh5 {[%emt 0:00:35]} 43. Rc5 {[%emt 0:05:16]} Nd5 {[%emt 0:01:29] [#]} 44. Qe4 {[%emt 0:00:25]} (44. Qd2 $1 $16) 44... Kh6 $1 {[%emt 0:03:11] ( -> ...Nf4+)} (44... Nf4+ $2 45. Qxf4 Qd8 46. b4 $18 (46. Rxf5+ gxf5 47. Qxf5+ Kh6 $18)) 45. Rc4 {[%emt 0:07:01]} Qb8 {[%emt 0:06:26]} 46. b4 {[%emt 0:06:18]} Nf4+ {[%emt 0:01:31]} (46... Qb7 $11) 47. Kf1 {[%emt 0:01:07]} ({White should try} 47. Kg1 $14) 47... Qd6 {[%emt 0:02:17]} (47... Qb5 $11 {is more appropriate.}) 48. Qe3 {[%emt 0:03:09]} (48. Nd4 $14 Rf7 49. b5) 48... Qa6 {[%emt 0:05:21]} (48... Qd1+ $6 49. Ne1 Qg4 50. Re4 $16) 49. Qc3 {[%emt 0:01:32] [#]} (49. Qc1 $11 {keeps the balance.}) 49... Qa2 {[%emt 0:04:16]} ({Better is} 49... Rd5 $1 $17 {[%cal Rd5d3]} 50. Qc1 Rd1+ 51. Qxd1 Qxc4+ 52. Ke1 Qxb4+ 53. Nd2 Qe7+ 54. Kf1 Qd6) 50. Nd2 $11 {[%emt 0:00:39] The position is equal.} Qa8 {[%emt 0:01:19]} 51. f3 {[%emt 0:00:33]} Qd8 {[%emt 0:00:41]} 52. Qe3 {[%emt 0:01:35]} Qh4 53. Ne4 {[%emt 0:01:25] Hoping for Ng3.} Qxh2 {[%emt 0:03:18]} 54. Nf2 {[%emt 0:00:26] Ng4+ would kill now. Inhibits Qh1+.} Kh5 {[%emt 0:02:53]} 55. Ng4 {[%emt 0:01:07][%mdl 32768] Weighted Error Value: White=0.37/Black=0.41 Loss on time!?  Loses game:     	---       	Black=1      Missed win:     	White=2     	---        Mistake:       	White=9     	Black=6      Inaccurate:     	White=3     	Black=4      OK:         	White=16    	Black=14     Best:        	White=4     	Black=2      Strong:       	White=1     	Black=3      Brilliant:      	---       	Black=2} 0-1

[Event "FIDE WSTC Open 50 2025"]
[Site "Prague"]
[Date "2025.02.23"]
[Round "6.34"]
[White "Czebe, Attila"]
[Black "Druckenthaner, Andreas"]
[Result "1-0"]
[Annotator "RC"]
[ECO "D11"]
[WhiteElo "2255"]
[BlackElo "2214"]
[PlyCount "73"]
[EventDate "2025.02.17"]
[EventType "team-tourn"]
[EventCountry "CZE"]
[SourceTitle "playchess.com"]
[Source "ChessBase"]
[SourceQuality "1"]
[TimeControl "40/5400+30:1800+30"]

1. d4 {[%emt 0:00:04]} d5 {[%emt 0:00:10]} 2. c4 {[%emt 0:02:38]} c6 {[%emt 0:00:10]} 3. Nf3 {[%emt 0:00:41]} Nf6 {[%emt 0:00:11]} 4. e3 {[%emt 0:01:10]} Bg4 {[%emt 0:00:12]} 5. Nbd2 {[%emt 0:07:40]} e6 {[%emt 0:01:15]} 6. Bd3 {[%emt 0:00:59]} Nbd7 {[%emt 0:01:05]} 7. O-O {[%emt 0:00:36]} Be7 {[%emt 0:04:05]} 8. Qc2 {[%emt 0:01:49]} dxc4 {[%emt 0:07:52]} 9. Nxc4 {[%emt 0:00:36]} Bxf3 {[%emt 0:00:13]} 10. gxf3 {[%emt 0:00:03]} O-O {[%emt 0:08:49]} 11. e4 {[%emt 0:04:20]} c5 {[%emt 0:06:56]} 12. e5 {[%emt 0:00:50]} Nd5 {[%emt 0:00:33]} 13. Bxh7+ {[%emt 0:00:04]} Kh8 {[%emt 0:00:05]} 14. Be4 {[%emt 0:00:07]} cxd4 {[%emt 0:00:40]} 15. Qd1 {[%emt 0:08:17]} Bc5 {[%emt 0:18:21]} 16. f4 {[%emt 0:00:41]} Qh4 {[%emt 0:01:39]} 17. Qf3 {[%emt 0:00:32]} Rad8 {[%emt 0:14:13]} 18. Qg3 {[%emt 0:03:45]} Qxg3+ {[%emt 0:00:44]} 19. hxg3 {[%emt 0:00:04]} N7b6 {[%emt 0:00:41]} 20. Nxb6 {[%emt 0:00:53]} Bxb6 {[%emt 0:00:16]} 21. Bd2 {[%emt 0:00:43]} Rd7 {[%emt 0:06:28]} 22. Kg2 {[%emt 0:05:44]} f5 {[%emt 0:10:20]} 23. exf6 {[%emt 0:00:39]} Nxf6 {[%emt 0:01:08]} 24. Bd3 {[%emt 0:00:16]} Rc8 {[%emt 0:00:49]} 25. Rae1 {[%emt 0:01:14]} Re7 {[%emt 0:01:08]} 26. Re5 {[%emt 0:01:29]} Nd7 {[%emt 0:03:00]} 27. Re2 {[%emt 0:12:40]} Kg8 {[%emt 0:03:21]} 28. b3 {[%emt 0:07:36]} Nc5 {[%emt 0:01:46]} 29. Bc4 {[%emt 0:00:33]} Kf8 {[%emt 0:01:07]} 30. Rh1 {[%emt 0:00:43]} Rc6 {[%emt 0:01:33]} 31. f5 {[%emt 0:04:33]} Kf7 {[%emt 0:01:25]} 32. b4 {[%emt 0:13:42]} Ne4 {[%emt 0:01:49]} 33. Bxe6+ {[%emt 0:01:05]} Rcxe6 {[%emt 0:00:21]} 34. fxe6+ {[%emt 0:00:05]} Rxe6 {[%emt 0:00:07]} 35. Rhe1 {[%emt 0:00:28]} Nxd2 {[%emt 0:00:27]} 36. Rxe6 {[%emt 0:00:04]} Nc4 {[%emt 0:01:46]} 37. Rxb6 {[%emt 0:00:22]} 1-0

[Event "FIDE WSTC Open 50 2025"]
[Site "Prague"]
[Date "2025.02.23"]
[Round "6.35"]
[White "Kranzl, Peter"]
[Black "Horvath, Peter"]
[Result "1/2-1/2"]
[Annotator "TA"]
[ECO "B22"]
[WhiteElo "2151"]
[BlackElo "2354"]
[PlyCount "96"]
[EventDate "2025.02.17"]
[EventType "team-tourn"]
[EventCountry "CZE"]
[SourceTitle "playchess.com"]
[Source "ChessBase"]
[SourceQuality "1"]
[TimeControl "40/5400+30:1800+30"]

{[%evp 12,96,9,4,19,7,6,0,12,-4,10,-2,-2,-14,-10,-3,-8,-21,-16,-20,-15,-28,-22,-46,14,0,0,-25,5,-39,-25,-37,-30,-52,-33,-38,-44,-143,-15,-33,-34,-32,17,0,0,-18,-12,-22,-5,-50,-9,-37,0,-6,-2,-27,62,0,53,0,0,0,60,34,82,0,68,0,0,0,19,13,23,12,14,35,58,35,76,29,20,31,23,0,10,0,16]} 1. e4 {[%emt 0:00:02]} c5 {[%emt 0:00:12]} 2. c3 {[%emt 0:00:05]} d5 {[%emt 0:00:13]} 3. exd5 {[%emt 0:00:07]} Qxd5 {[%emt 0:00:06]} 4. Nf3 {[%emt 0:00:16]} Nf6 {[%emt 0:00:31]} 5. d4 {[%emt 0:00:08]} e6 {[%emt 0:00:29]} 6. Na3 {[%emt 0:01:29]} Nc6 {[%emt 0:01:59]} 7. Be3 {[%emt 0:04:29]} cxd4 {[%emt 0:00:19] [#] B22: Sicilian: 2 c3.} 8. Nb5 $1 {[%emt 0:00:10]} Qd7 {[%emt 0:00:07] Inhibits Nc7+.} 9. Nbxd4 {[%emt 0:00:26]} Be7 $1 {[%emt 0:00:36][%mdl 4] is currently scoring better than 9...Nd5.} 10. Be2 {[%emt 0:11:27]} O-O {[%emt 0:08:46]} 11. O-O {[%emt 0:00:50]} Nd5 {[%emt 0:06:24]} 12. Nxc6 {[%emt 0:03:29]} Qxc6 $146 {[%emt 0:01:36]} ({Predecessor:} 12... bxc6 13. Bd4 f6 14. c4 Nf4 15. Bc3 Nxe2+ 16. Qxe2 e5 17. Rfd1 Qg4 18. h3 Qh5 {1-0 Renjith,S (2254)-Kotyk,M (2137) Titled Tuesday intern op 12th Dec Early blitz 2023 (7)}) 13. Bd2 {[%emt 0:01:35]} Qc7 {[%emt 0:04:56]} 14. Qc1 {[%emt 0:11:22]} Bd6 {[%emt 0:10:13]} 15. g3 {[%emt 0:12:27]} e5 {[%emt 0:07:06]} 16. c4 {[%emt 0:05:12]} Nf6 {[%emt 0:05:34]} 17. Re1 {[%emt 0:08:12]} Bg4 {[%emt 0:05:25]} (17... b6 $15) 18. Nh4 {[%emt 0:05:16]} (18. Qc2 Bc5 19. b4 e4 20. Ng5) 18... Be6 {[%emt 0:16:41]} 19. Bf1 {[%emt 0:01:41]} Bc5 {[%emt 0:05:50]} 20. Ng2 {[%emt 0:09:12]} Rfd8 {[%emt 0:04:30][%cal Oc5f2] and ...Bxf2+! should not be overlooked} 21. Bg5 {[%emt 0:03:52] [#]} Ng4 $1 {[%emt 0:00:10]} 22. Ne3 {[%emt 0:00:19]} f6 {[%emt 0:02:44]} 23. Nxg4 $1 {[%emt 0:00:32]} Bxg4 {[%emt 0:00:08]} 24. Bd2 {[%emt 0:01:19] [#]} (24. Be3 $15) 24... Bf3 {[%emt 0:03:24]} (24... Qd7 $1 $17 {[%cal Rd7d2]} 25. b4 Bxf2+ 26. Kxf2 Qxd2+ 27. Qxd2 Rxd2+ 28. Kg1 Bf3) 25. b4 {[%emt 0:05:09]} Bd4 {[%emt 0:00:28]} 26. Bc3 {[%emt 0:01:16]} e4 {[%emt 0:02:52]} (26... b6 $15) 27. Bxd4 {[%emt 0:03:14] Successful Defense White} Rxd4 {[%emt 0:00:07]} 28. Qe3 {[%emt 0:02:11] Prevents f5.} Rad8 {[%emt 0:01:43]} 29. a3 {[%emt 0:00:43] White is weak on the light squares} h5 {[%emt 0:00:47][%cal Oh5h4]} 30. h4 {[%emt 0:00:57]} Qe5 {[%emt 0:03:20]} 31. Rac1 {[%emt 0:01:17]} a5 {[%emt 0:00:43]} 32. Rb1 {[%emt 0:00:54]} a4 {[%emt 0:02:59]} 33. Rbc1 {[%emt 0:01:18]} Rc8 {[%emt 0:01:54]} ({Better is} 33... g5 $11 34. hxg5 Qxg5 (34... fxg5 $2 35. Qxf3 h4 36. Re3 $18)) 34. Rc3 {[%emt 0:01:40]} (34. c5 $14) 34... Kh7 {[%emt 0:01:21]} (34... Rcd8 $11) 35. Rcc1 {[%emt 0:00:57]} (35. c5 $14) 35... Rc7 {[%emt 0:01:05]} 36. Rc3 {[%emt 0:00:53]} Re7 {[%emt 0:00:31]} (36... Rc8 $11) 37. c5 $14 {[%emt 0:02:21] White has a queen side majority} Rc7 {[%emt 0:01:54]} (37... Red7 $14) 38. Rcc1 {[%emt 0:00:54]} (38. Bb5 $16) 38... Rd8 {[%emt 0:00:53]} (38... g5 $11) 39. Bb5 {[%emt 0:01:07]} ({White should play} 39. b5 $14) 39... Qf5 $11 {[%emt 0:00:21]} 40. Bf1 {[%emt 0:00:07][%cal Bb5f1,Bf1h3,Bh3g2][%mdl 32] Repels Qh3} (40. Bxa4 $2 Qh3 $19) 40... Rd5 {[%emt 0:00:46]} 41. Rc3 {[%emt 0:01:53]} Re5 {[%emt 0:15:46]} 42. Kh2 {[%emt 0:12:05]} g5 {[%emt 0:07:53]} (42... Rd5 {is interesting.} 43. Bc4 Re5 44. Qf4 g5) 43. Bh3 {[%emt 0:01:57]} Bg4 {[%emt 0:00:26]} 44. Bg2 {[%emt 0:00:42][%cal Rg2e4]} Rce7 {[%emt 0:00:49] [#]} 45. Rc4 {[%emt 0:04:18]} (45. hxg5 $1 $16 fxg5 46. Rec1) 45... Bf3 $1 {[%emt 0:01:24]} ({But not} 45... gxh4 $2 46. Bxe4 (46. Rxe4 Kg7 $16) 46... hxg3+ 47. Kxg3 $18 (47. Kg2 Bh3+ 48. Kxg3 Rxe4 $14)) 46. Bh3 {[%emt 0:00:20]} Bg4 {[%emt 0:02:48]} 47. Bg2 {[%emt 0:00:33][%cal Rg2e4]} Bf3 {[%emt 0:00:31]} (47... gxh4 48. Bxe4 (48. Rxe4 hxg3+ 49. fxg3 Kg8 $16) 48... hxg3+ 49. Kxg3 $18 (49. Kg2 Bh3+ 50. Kxg3 Rxe4 $14)) 48. Bh3 {[%emt 0:00:06]} Bg4 $1 {[%emt 0:00:29] Weighted Error Value: White=0.20 (precise) /Black=0.25 (precise)   Mistake:       	White=6     	Black=8      Inaccurate:     	White=3     	Black=4      OK:         	White=10    	Black=12     Strong:       	White=2     	Black=2} 1/2-1/2

[Event "FIDE WSTC Open 50 2025"]
[Site "Prague"]
[Date "2025.02.23"]
[Round "6.36"]
[White "Krizsany, Laszlo"]
[Black "Hager, Herbert"]
[Result "0-1"]
[Annotator "RC"]
[ECO "D60"]
[WhiteElo "2303"]
[BlackElo "2023"]
[PlyCount "130"]
[EventDate "2025.02.17"]
[EventType "team-tourn"]
[EventCountry "CZE"]
[SourceTitle "playchess.com"]
[Source "ChessBase"]
[SourceQuality "1"]
[TimeControl "40/5400+30:1800+30"]

1. d4 {[%emt 0:00:04]} Nf6 {[%emt 0:00:10]} 2. c4 {[%emt 0:00:07]} e6 {[%emt 0:00:27]} 3. Nf3 {[%emt 0:00:07]} d5 {[%emt 0:01:43]} 4. Nc3 {[%emt 0:00:11]} Be7 {[%emt 0:02:06]} 5. Bg5 {[%emt 0:00:16]} O-O {[%emt 0:00:33]} 6. e3 {[%emt 0:00:12]} Nbd7 {[%emt 0:01:52]} 7. cxd5 {[%emt 0:01:48]} Nxd5 {[%emt 0:01:27]} 8. Bxe7 {[%emt 0:00:22]} Qxe7 {[%emt 0:00:18]} 9. Qb3 {[%emt 0:04:04]} Nxc3 {[%emt 0:12:40]} 10. Qxc3 {[%emt 0:00:49]} c5 {[%emt 0:03:40]} 11. Rc1 {[%emt 0:03:08]} b6 {[%emt 0:04:19]} 12. Bb5 {[%emt 0:02:27]} Bb7 {[%emt 0:01:03]} 13. Bxd7 {[%emt 0:02:46]} Qxd7 {[%emt 0:10:44]} 14. dxc5 {[%emt 0:00:14]} bxc5 {[%emt 0:02:17]} 15. b3 {[%emt 0:03:22]} Ba6 {[%emt 0:10:40]} 16. Ne5 {[%emt 0:08:50]} Qd5 {[%emt 0:04:45]} 17. f3 {[%emt 0:00:34]} Rfd8 {[%emt 0:04:10]} 18. Kf2 {[%emt 0:12:37]} f6 {[%emt 0:03:50]} 19. Nc4 {[%emt 0:01:00]} Bxc4 {[%emt 0:03:00]} 20. Qxc4 {[%emt 0:01:12]} Qxc4 {[%emt 0:01:26]} 21. Rxc4 {[%emt 0:00:07]} Rd2+ {[%emt 0:00:10]} 22. Kg3 {[%emt 0:00:25]} Rxa2 {[%emt 0:00:14]} 23. Rd1 {[%emt 0:02:07]} Ra5 {[%emt 0:06:08]} 24. Rd7 {[%emt 0:00:37]} Rb8 {[%emt 0:01:31]} 25. h4 {[%emt 0:02:28]} h5 {[%emt 0:07:33]} 26. Re4 {[%emt 0:10:00]} Ra6 {[%emt 0:06:45]} 27. Rc7 {[%emt 0:11:17]} Rxb3 {[%emt 0:00:55]} 28. Rxc5 {[%emt 0:00:07]} f5 {[%emt 0:06:07]} 29. Rd4 {[%emt 0:00:52]} Rab6 {[%emt 0:00:05]} 30. e4 {[%emt 0:02:28]} R3b5 {[%emt 0:01:46]} 31. Rc8+ {[%emt 0:08:03]} Kh7 {[%emt 0:00:53]} 32. Re8 {[%emt 0:00:32]} e5 {[%emt 0:01:08]} 33. Rdd8 {[%emt 0:01:56]} fxe4 {[%emt 0:01:01]} 34. fxe4 {[%emt 0:00:36]} a5 {[%emt 0:00:32]} 35. Kh3 {[%emt 0:02:43]} Ra6 {[%emt 0:00:47]} 36. Ra8 {[%emt 0:07:29]} Rb3+ {[%emt 0:00:14]} 37. g3 {[%emt 0:00:42]} Rbb6 {[%emt 0:00:14]} 38. Rxa6 {[%emt 0:02:04]} Rxa6 {[%emt 0:00:04]} 39. Rxe5 {[%emt 0:00:13]} g6 {[%emt 0:00:07]} 40. Re7+ {[%emt 0:05:52]} Kh6 {[%emt 0:00:14]} 41. g4 {[%emt 0:30:42]} hxg4+ {[%emt 0:30:22]} 42. Kxg4 {[%emt 0:00:02]} a4 {[%emt 0:00:00]} 43. Rd7 {[%emt 0:00:00]} a3 {[%emt 0:00:00]} 44. Rd1 {[%emt 0:00:00]} Ra4 {[%emt 0:00:00]} 45. Kf4 {[%emt 0:00:00]} a2 {[%emt 0:00:00]} 46. Ra1 {[%emt 0:00:00]} Kh5 {[%emt 0:00:00]} 47. Ke5 {[%emt 0:00:00]} Kxh4 {[%emt 0:00:00]} 48. Kd5 {[%emt 0:00:00]} Kg5 {[%emt 0:00:00]} 49. e5 {[%emt 0:00:00]} Kf5 {[%emt 0:00:00]} 50. Rf1+ {[%emt 0:00:00]} Rf4 {[%emt 0:02:07]} 51. Re1 {[%emt 0:00:00]} Rf2 {[%emt 0:00:46]} 52. e6 {[%emt 0:00:00]} Rd2+ {[%emt 0:00:16]} 53. Kc4 {[%emt 0:00:00]} Re2 {[%emt 0:00:34]} 54. Rxe2 {[%emt 0:00:00]} a1=Q {[%emt 0:00:10]} 55. Kd3 {[%emt 0:00:00]} Qa3+ {[%emt 0:00:29]} 56. Kd2 {[%emt 0:00:00]} Qe7 {[%emt 0:01:00]} 57. Ke1 {[%emt 0:00:00]} g5 {[%emt 0:00:10]} 58. Kf2 {[%emt 0:00:00]} Kf4 {[%emt 0:00:25]} 59. Kg2 {[%emt 0:00:00]} g4 {[%emt 0:00:51]} 60. Rf2+ {[%emt 0:00:00]} Kg5 {[%emt 0:00:27]} 61. Re2 {[%emt 0:00:00]} Kh4 {[%emt 0:00:12]} 62. Re3 {[%emt 0:00:00]} Qc5 {[%emt 0:00:56]} 63. Re2 {[%emt 0:00:00]} Qd5+ {[%emt 0:00:28]} 64. Kf1 {[%emt 0:00:00]} Qd1+ {[%emt 0:01:54]} 65. Re1 {[%emt 0:00:00]} Qf3+ {[%emt 0:00:17]} 0-1